bitfinex/quotes_SOLUSD_20250401
["timestamp","ask_amount","ask_price","bid_price","bid_amount"]
[1743486749560,7.4626694,126.13,126.1,18.933972]
[1743486750764,7.9279,126.14,126.1,18.933972]
[1743486750765,7.4626694,126.14,126.1,18.933972]
[1743486751164,27.4626694,126.15,126.1,26.863972]
[1743486752470,20.0,126.15,126.12,18.933972]
[1743486752763,7.4626694,126.16,126.12,25.673972]
[1743486752962,7.4626694,126.17,126.12,25.673972]
[1743486753165,15.3887694,126.17,126.12,33.602272]
[1743486753546,7.4626694,126.16,126.12,33.602272]
[1743486754768,15.3891694,126.16,126.12,33.602272]
[1743486755562,7.4626694,126.16,126.12,33.602272]
[1743486758673,7.4626694,126.17,126.12,33.602272]
[1743486758973,0.03,126.16,126.12,33.602272]
[1743486763354,7.4926694,126.16,126.12,33.602272]
[1743486764178,15.4190694,126.16,126.12,25.673972]
[1743486770875,15.4190694,126.16,126.12,25.736972]
[1743486780091,15.1637694,126.16,126.12,25.736972]
[1743486780391,15.3887694,126.17,126.12,33.665872]
[1743486782099,15.3887694,126.17,126.15,0.14216157]
[1743486786093,15.3887694,126.17,126.14,0.14216157]
[1743486786993,7.4626694,126.16,126.12,14.7319]
[1743486787296,7.4626694,126.15,126.13,18.79181043]
[1743486788191,7.4626694,126.14,126.12,0.063]
[1743486788391,7.9272,126.15,126.12,0.063]
[1743486788595,7.4626694,126.16,126.12,0.20516157]
[1743486789994,7.927,126.15,126.12,0.20516157]
[1743486812018,0.03,126.16,126.12,0.20516157]
[1743486812223,20.0,126.14,126.12,0.20516157]
[1743486816826,27.9278,126.14,126.12,0.20516157]
[1743486825030,27.9278,126.14,126.12,0.063]
[1743486826712,0.03,126.16,126.12,0.063]
[1743486826907,0.03,126.16,126.13,6.74]
[1743486826908,20.03,126.16,126.13,6.74]
[1743486827328,0.03,126.16,126.14,18.933972]
[1743486829245,0.03,126.16,126.14,26.861272]
[1743486838422,0.03,126.16,126.15,38.933972]
[1743486840046,0.03,126.16,126.15,53.252572]
[1743486841736,0.03,126.16,126.15,54.821572]
[1743486850546,0.03,126.16,126.15,55.321572]
[1743486854157,0.03,126.24,126.19,20.0]
[1743486854454,7.4926694,126.24,126.21,18.933972]
[1743486854756,7.4626694,126.23,126.21,18.933972]
[1743486858252,7.4626694,126.23,126.21,26.857172]
[1743486859957,0.03,126.24,126.21,46.857172]
[1743486862665,7.4926694,126.24,126.21,46.857172]
[1743486862855,7.4926694,126.24,126.21,38.933972]
[1743486863559,7.4626694,126.23,126.21,38.933972]
[1743486868070,7.4926694,126.23,126.21,38.933972]
[1743486871167,7.4926694,126.23,126.22,25.53181043]
[1743486873476,15.4146694,126.23,126.22,25.53181043]
[1743486879883,15.4146694,126.23,126.22,18.64964886]
[1743486880063,15.4146694,126.23,126.22,18.79181043]
[1743486881678,15.4146694,126.23,126.2,0.14216157]
[1743486881859,7.4626694,126.21,126.2,25.673972]
[1743486884260,7.4626694,126.21,126.2,18.933972]
[1743486884560,7.4626694,126.21,126.2,25.673972]
[1743486886382,15.3859694,126.21,126.2,6.88216157]
[1743486888990,15.3859694,126.21,126.2,18.79181043]
[1743486893105,15.4159694,126.21,126.2,18.79181043]
[1743486894395,7.4926694,126.21,126.2,18.79181043]
[1743486905615,0.03,126.21,126.2,18.933972]
[1743486908810,0.03,126.21,126.2,28.512872]
[1743486911016,0.03,126.21,126.2,20.588972]
[1743486916017,0.03,126.21,126.2,28.512872]
[1743486918809,0.03,126.21,126.2,20.588972]
[1743486919919,0.03,126.21,126.2,18.933972]
[1743486922425,7.4926694,126.21,126.2,0.28432314]
[1743486922616,7.4926694,126.21,126.2,7.02432314]
[1743486923827,15.4159694,126.21,126.2,25.53181043]
[1743486924328,15.4159694,126.21,126.2,18.79181043]
[1743486929231,15.4159694,126.21,126.19,6.74]
[1743486929436,7.4626694,126.2,126.19,6.88216157]
[1743486930230,7.4626694,126.2,126.19,0.14216157]
[1743486931138,15.3865694,126.2,126.19,0.14216157]
[1743486939923,15.4165694,126.2,126.19,0.14216157]
[1743486942947,0.03,126.2,126.19,0.14216157]
[1743486943127,7.4926694,126.2,126.19,0.14216157]
[1743486945244,15.4165694,126.2,126.19,0.14216157]
[1743486948547,15.4165694,126.2,126.17,6.803]
[1743486948747,7.4626694,126.18,126.17,25.59481043]
[1743486949749,15.3877694,126.18,126.17,6.803]
[1743486949949,15.3877694,126.18,126.17,6.94516157]
[1743486951352,15.3877694,126.18,126.17,0.20516157]
[1743486951554,15.3877694,126.18,126.17,0.063]
[1743486956159,45.238447,126.18,126.17,0.063]
[1743486960960,15.3877694,126.18,126.17,0.063]
[1743486962741,45.238447,126.18,126.17,0.063]
[1743486963073,15.3877694,126.18,126.17,0.063]
[1743486965664,45.238447,126.18,126.17,0.063]
[1743486973267,45.238447,126.18,126.17,0.0001]
[1743486975775,45.268447,126.18,126.17,0.0001]
[1743486997389,45.268447,126.18,126.15,0.063]
[1743486997390,20.0,126.16,126.15,0.063]
[1743486997593,27.4626694,126.16,126.15,0.063]
[1743486999365,35.3890694,126.16,126.15,0.063]
[1743487003476,55.2051694,126.16,126.13,1.6466]
[1743487003797,7.4626694,126.14,126.13,1.6466]
[1743487005603,15.3902694,126.14,126.13,1.6466]
[1743487012901,15.3902694,126.14,126.13,1.7096]
[1743487017407,15.3902694,126.14,126.13,0.7096]
[1743487025504,15.4202694,126.14,126.13,0.7096]
[1743487025702,0.03,126.14,126.13,25.52621043]
[1743487026307,0.03,126.14,126.13,6.87656157]
[1743487027920,0.03,126.14,126.13,7.01872314]
[1743487028711,0.03,126.14,126.13,14.94702314]
[1743487035107,0.03,126.14,126.13,7.01872314]
[1743487042020,0.03,126.14,126.13,25.668372]
[1743487044238,0.03,126.14,126.13,18.85481043]
[1743487045333,7.4926694,126.14,126.13,6.803]
[1743487045628,0.03,126.14,126.13,6.94516157]
[1743487046930,0.03,126.14,126.13,0.20516157]
[1743487047122,0.03,126.14,126.13,6.94516157]
[1743487057427,0.03,126.14,126.13,25.59481043]
[1743487058426,7.4926694,126.14,126.13,0.063]
[1743487058829,15.4202694,126.14,126.13,0.063]
[1743487086560,0.03,126.14,126.13,6.803]
[1743487086729,0.03,126.14,126.13,25.59481043]
[1743487087331,0.03,126.14,126.13,6.94516157]
[1743487087937,0.03,126.14,126.13,7.08732314]
[1743487090250,0.03,126.14,126.13,41.463672]
[1743487091151,0.03,126.14,126.13,33.535372]
[1743487103373,0.03,126.14,126.13,25.736972]
[1743487104149,0.03,126.14,126.13,25.716972]
[1743487113479,0.03,126.14,126.13,18.996972]
[1743487113668,7.4926694,126.14,126.13,18.85481043]
[1743487114688,15.4202694,126.14,126.13,18.85481043]
[1743487118483,15.4202694,126.14,126.13,0.20516157]
[1743487118665,15.4202694,126.14,126.13,6.783]
[1743487129570,7.9576,126.14,126.13,6.783]
[1743487129780,15.4202694,126.14,126.13,6.783]
[1743487130182,7.4926694,126.14,126.13,25.57481043]
[1743487130387,0.03,126.14,126.13,25.57481043]
[1743487132608,0.03,126.14,126.13,33.645272]
[1743487134383,0.03,126.14,126.13,25.716972]
[1743487135518,0.03,126.14,126.13,33.645272]
[1743487142210,0.03,126.14,126.13,25.716972]
[1743487142585,0.03,126.14,126.13,18.996972]
[1743487142790,0.03,126.14,126.13,25.716972]
[1743487142791,7.4926694,126.14,126.13,25.716972]
[1743487148904,15.4202694,126.14,126.13,25.57481043]
[1743487150322,0.03,126.14,126.13,25.57481043]
[1743487150620,7.4926694,126.14,126.13,25.57481043]
[1743487152718,7.4926694,126.14,126.13,6.92516157]
[1743487155709,0.03,126.14,126.13,6.92516157]
[1743487155908,7.4926694,126.14,126.13,6.92516157]
[1743487168238,0.03,126.14,126.13,6.92516157]
[1743487171518,0.03,126.14,126.13,25.716972]
[1743487178347,7.4926694,126.14,126.13,25.716972]
[1743487179939,15.4202694,126.14,126.13,0.20516157]
[1743487180123,15.4202694,126.14,126.13,6.92516157]
[1743487194962,7.4926694,126.14,126.13,6.92516157]
[1743487196048,7.4926694,126.14,126.13,25.716972]
[1743487202955,15.4202694,126.14,126.13,25.716972]
[1743487203157,15.4202694,126.14,126.13,6.92516157]
[1743487206054,7.4926694,126.14,126.13,25.716972]
[1743487206360,0.03,126.14,126.13,33.645272]
[1743487206662,0.03,126.14,126.13,25.716972]
[1743487214377,0.03,126.14,126.13,33.645272]
[1743487217464,0.03,126.14,126.13,41.306872]
[1743487223054,0.03,126.14,126.13,123.006872]
[1743487224451,0.03,126.15,126.14,38.933972]
[1743487225565,0.03,126.15,126.14,46.861572]
[1743487228082,0.03,126.15,126.14,53.581572]
[1743487228885,0.03,126.15,126.14,135.281572]
[1743487246218,0.03,126.15,126.14,135.344572]
[1743487258018,7.4926694,126.15,126.14,18.996972]
[1743487258220,7.4926694,126.15,126.14,25.716972]
[1743487261908,7.4926694,126.15,126.14,33.644572]
[1743487262308,0.03,126.15,126.14,53.644572]
[1743487262505,7.4926694,126.15,126.14,53.644572]
[1743487266032,0.03,126.15,126.14,53.644572]
[1743487266827,7.4926694,126.15,126.14,53.644572]
[1743487267029,7.4926694,126.15,126.14,45.716972]
[1743487267334,7.4926694,126.15,126.14,53.644572]
[1743487269135,7.4926694,126.15,126.14,46.924572]
[1743487269439,7.4926694,126.15,126.14,53.644572]
[1743487273540,7.4926694,126.15,126.14,25.716972]
[1743487273729,15.4196694,126.15,126.14,0.063]
[1743487274743,20.0,126.13,126.12,0.063]
[1743487274957,29.0467694,126.13,126.1,0.063]
[1743487275138,13.9616694,126.11,126.1,0.063]
[1743487276163,21.8911694,126.11,126.1,0.063]
[1743487291138,41.7150694,126.11,126.07,0.063]
[1743487291339,7.4626694,126.08,126.07,0.063]
[1743487292746,15.3940694,126.08,126.07,0.063]
[1743487293866,45.244747,126.08,126.07,0.063]
[1743487294080,65.073347,126.08,126.04,0.063]
[1743487294248,7.4626694,126.05,126.04,0.063]
[1743487294772,15.3959694,126.05,126.04,0.063]
[1743487306763,15.3959694,126.05,126.01,0.063]
[1743487307076,7.4626694,126.02,126.01,0.063]
[1743487308073,37.313347,126.02,125.97,0.063]
[1743487308382,20.0,126.02,125.97,0.063]
[1743487308764,7.4626694,125.99,125.97,0.063]
[1743487308968,15.4000694,125.99,125.97,0.063]
[1743487309180,7.4626694,125.98,125.97,0.063]
[1743487310960,7.4626694,125.99,125.97,0.063]
[1743487311558,7.4626694,126.0,125.97,0.063]
[1743487311970,20.0,126.01,125.97,0.063]
[1743487312187,27.4626694,126.01,125.97,0.063]
[1743487312388,7.4626694,126.0,125.97,0.063]
[1743487313429,7.4626694,126.0,125.97,0.20516157]
[1743487313774,7.4626694,126.0,125.96,26.435772]
[1743487314969,7.4626694,125.99,125.96,26.435772]
[1743487316182,27.9359,126.01,125.98,0.14216157]
[1743487316387,7.4626694,126.0,125.98,0.14216157]
[1743487317495,7.4626694,126.01,125.99,6.76]
[1743487317801,29.8506776,126.06,126.0,18.933972]
[1743487317977,7.4626694,126.04,126.0,20.588172]
[1743487318294,7.4626694,126.03,126.0,20.588172]
[1743487318468,7.4626694,126.03,126.0,28.524272]
[1743487318885,7.4626694,126.04,126.0,28.524272]
[1743487320390,7.9321,126.07,126.0,28.524272]
[1743487320697,7.4626694,126.06,126.0,48.524272]
[1743487322774,7.4626694,126.05,126.0,48.524272]
[1743487325680,7.4626694,126.06,126.0,48.524272]
[1743487327388,15.3953694,126.06,126.0,48.524272]
[1743487327595,7.4626694,126.06,126.0,48.524272]
[1743487328171,7.4626694,126.06,126.0,68.365472]
[1743487329601,7.4626694,126.05,126.0,68.365472]
[1743487329785,7.4626694,126.06,126.0,68.365472]
[1743487330102,7.4626694,126.05,126.0,48.524272]
[1743487331398,15.4253694,126.06,126.0,48.524272]
[1743487331602,7.4926694,126.06,126.0,48.524272]
[1743487332213,7.4626694,126.05,126.0,48.524272]
[1743487332416,7.4926694,126.06,126.0,48.524272]
[1743487333792,15.4255694,126.06,126.0,48.524272]
[1743487333994,7.4626694,126.05,126.0,48.524272]
[1743487336111,15.3961694,126.05,126.0,48.524272]
[1743487336311,7.4626694,126.05,126.0,48.524272]
[1743487336996,7.4626694,126.03,126.0,48.524272]
[1743487339009,7.4626694,126.04,126.0,48.524272]
[1743487341407,7.4626694,126.04,126.02,0.14216157]
[1743487343812,15.4261694,126.05,126.02,0.14216157]
[1743487344010,0.03,126.05,126.02,0.14216157]
[1743487344321,0.03,126.05,126.03,18.64964886]
[1743487347589,7.4926694,126.05,126.02,18.933972]
[1743487348005,0.03,126.05,126.02,26.869072]
[1743487356720,7.4926694,126.05,126.02,26.869072]
[1743487362003,7.4926694,126.05,126.0,20.0]
[1743487362004,7.4626694,126.03,125.98,0.063]
[1743487362326,7.9635,126.05,125.99,0.28432314]
[1743487362521,7.4926694,126.05,126.01,0.28432314]
[1743487362712,7.4926694,126.05,126.03,18.64964886]
[1743487363228,0.03,126.05,126.03,18.64964886]
[1743487365231,7.4926694,126.05,126.03,18.64964886]
[1743487367235,15.4261694,126.05,126.03,18.64964886]
[1743487369346,0.03,126.05,126.04,38.933972]
[1743487371458,0.03,126.05,126.04,46.867872]
[1743487373345,0.03,126.05,126.04,38.933972]
[1743487373632,0.03,126.05,126.04,18.79181043]
[1743487373837,7.4926694,126.05,126.04,18.64964886]
[1743487374012,7.4926694,126.05,126.04,25.36964886]
[1743487376946,7.4926694,126.05,126.04,18.64964886]
[1743487381623,0.03,126.05,126.04,18.64964886]
[1743487390156,7.4926694,126.05,125.98,0.20516157]
[1743487390362,7.4626694,126.01,126.0,6.72]
[1743487391250,7.4626694,126.01,126.0,18.64964886]
[1743487391957,7.4626694,126.01,125.98,18.85481043]
[1743487392159,7.4626694,126.01,125.98,25.57481043]
[1743487392455,7.4626694,126.0,125.98,25.57481043]
[1743487396153,7.4626694,125.99,125.98,0.063]
[1743487398263,15.3997694,125.99,125.98,0.063]
[1743487413365,15.3997694,125.99,125.96,18.71264886]
[1743487413366,43.07623097,125.99,125.96,0.063]
[1743487413665,43.07623097,125.99,125.93,6.78]
[1743487413666,20.0,125.96,125.93,6.78]
[1743487413872,27.4626694,125.96,125.93,6.78]
[1743487414447,35.4017694,125.96,125.93,6.78]
[1743487414969,7.4626694,125.95,125.93,6.78]
[1743487415770,7.4626694,125.94,125.93,25.42964886]
[1743487416565,15.4028694,125.94,125.93,18.64964886]
[1743487416747,15.4028694,125.94,125.93,25.42964886]
[1743487417369,7.4626694,125.94,125.93,25.42964886]
[1743487417562,15.4028694,125.94,125.93,25.42964886]
[1743487419567,15.4028694,125.94,125.91,18.71264886]
[1743487419861,7.4626694,125.92,125.91,18.71264886]
[1743487420064,7.4626694,125.92,125.91,25.49264886]
[1743487421049,7.4626694,125.92,125.91,18.71264886]
[1743487421248,7.4626694,125.92,125.91,25.49264886]
[1743487421766,7.4626694,125.93,125.91,25.49264886]
[1743487422652,7.4626694,125.94,125.92,0.14216157]
[1743487424364,7.4626694,125.93,125.92,0.14216157]
[1743487424750,7.4626694,125.94,125.92,0.14216157]
[1743487425057,7.4626694,125.93,125.92,0.14216157]
[1743487427971,7.4626694,125.93,125.92,0.20516157]
[1743487428879,7.4626694,125.93,125.92,0.063]
[1743487429065,15.4035694,125.93,125.92,0.063]
[1743487438170,15.4035694,125.93,125.88,8.1447]
[1743487438171,41.6621694,125.93,125.84,20.0]
[1743487438373,7.4626694,125.87,125.84,0.28432314]
[1743487438676,20.0,125.9,125.83,8.5073]
[1743487438677,7.4626694,125.89,125.87,0.14216157]
[1743487439466,7.4626694,125.88,125.87,0.14216157]
[1743487439668,7.4626694,125.88,125.83,36.4543]
[1743487439868,7.4626694,125.87,125.85,0.14216157]
[1743487440675,7.9438,125.89,125.85,25.46964886]
[1743487440676,7.4626694,125.86,125.85,25.46964886]
[1743487440869,7.4626694,125.86,125.84,25.46964886]
[1743487441174,7.4626694,125.85,125.84,6.82]
[1743487441764,7.4626694,125.86,125.84,25.46964886]
[1743487442480,7.4626694,125.85,125.84,18.64964886]
[1743487442780,7.4626694,125.85,125.83,1.7073]
[1743487443084,7.4626694,125.84,125.83,20.35694886]
[1743487444476,7.4626694,125.84,125.83,27.17694886]
[1743487445565,7.4626694,125.84,125.83,8.5273]
[1743487445771,7.4626694,125.84,125.83,6.883]
[1743487446380,15.4091694,125.84,125.83,0.063]
[1743487446583,28.29781903,125.84,125.83,0.063]
[1743487447375,7.9434,125.89,125.84,18.64964886]
[1743487447585,7.4626694,125.85,125.84,18.64964886]
[1743487447788,7.4626694,125.85,125.84,25.65181043]
[1743487450610,7.4626694,125.85,125.84,25.71481043]
[1743487451980,7.4626694,125.85,125.84,25.57264886]
[1743487456193,0.03,125.86,125.84,25.57264886]
[1743487456391,7.4626694,125.85,125.84,25.57264886]
[1743487457593,7.4626694,125.85,125.84,33.803472]
[1743487457800,0.03,125.86,125.85,0.14216157]
[1743487459708,0.03,125.86,125.85,26.73771043]
[1743487460702,7.4926694,125.86,125.84,0.063]
[1743487460880,7.4626694,125.85,125.84,25.57264886]
[1743487462885,7.4626694,125.85,125.84,6.923]
[1743487463080,15.4085694,125.85,125.84,6.923]
[1743487463888,15.4085694,125.85,125.84,0.063]
[1743487466387,7.4626694,125.85,125.84,0.063]
[1743487466804,15.4085694,125.85,125.84,0.063]
[1743487477308,15.4085694,125.85,125.79,6.2691]
[1743487477309,45.259247,125.85,125.79,6.2691]
[1743487477518,7.4626694,125.8,125.79,24.91874886]
[1743487477710,7.4626694,125.8,125.79,31.75874886]
[1743487478620,7.4626694,125.8,125.79,32.043072]
[1743487480213,7.4626694,125.8,125.79,31.90091043]
[1743487482417,22.3880082,125.82,125.8,18.79181043]
[1743487482618,7.9461,125.85,125.81,0.14216157]
[1743487482818,7.4626694,125.82,125.81,0.14216157]
[1743487483320,7.4626694,125.82,125.81,6.98216157]
[1743487485229,37.313347,125.82,125.81,6.84]
[1743487485717,45.261147,125.82,125.81,6.84]
[1743487488035,45.261147,125.82,125.79,25.48964886]
[1743487488207,7.4626694,125.8,125.79,6.84]
[1743487492937,7.4626694,125.8,125.79,14.93186157]
[1743487493238,7.4626694,125.8,125.79,33.58151043]
[1743487494136,27.9468,125.84,125.8,18.79181043]
[1743487494313,7.4626694,125.81,125.8,18.79181043]
[1743487494514,7.4626694,125.81,125.8,25.63181043]
[1743487495429,20.0,125.84,125.8,45.773972]
[1743487495739,7.4626694,125.82,125.81,0.14216157]
[1743487499337,7.4626694,125.82,125.81,26.74021043]
[1743487499539,7.4626694,125.82,125.81,18.79181043]
[1743487500528,7.4626694,125.82,125.81,26.80321043]
[1743487501519,7.4626694,125.82,125.81,26.945372]
[1743487502237,7.4626694,125.82,125.81,18.996972]
[1743487503737,7.4626694,125.82,125.81,26.945372]
[1743487504336,0.03,125.83,125.82,0.14216157]
[1743487504526,7.4926694,125.83,125.82,0.14216157]
[1743487504928,7.4926694,125.83,125.82,18.933972]
[1743487505339,7.4926694,125.83,125.82,18.79181043]
[1743487505640,7.4926694,125.83,125.82,0.14216157]
[1743487506824,7.4926694,125.83,125.81,18.71264886]
[1743487507031,7.4626694,125.82,125.81,18.85481043]
[1743487507947,37.313347,125.82,125.81,0.063]
[1743487508118,45.261147,125.82,125.81,0.063]
[1743487510332,37.313347,125.82,125.81,0.063]
[1743487510838,45.261147,125.82,125.81,0.063]
[1743487513742,7.4626694,125.82,125.81,0.063]
[1743487514536,37.313347,125.82,125.81,0.063]
[1743487515750,7.4626694,125.82,125.81,0.063]
[1743487516840,7.4626694,125.82,125.81,25.55264886]
[1743487519960,7.4626694,125.82,125.81,25.69481043]
[1743487520658,7.4626694,125.82,125.81,18.85481043]
[1743487520855,7.9772,125.83,125.81,6.883]
[1743487521033,7.4626694,125.82,125.81,6.883]
[1743487521461,7.4626694,125.82,125.81,7.02516157]
[1743487522157,7.4926694,125.83,125.82,0.14216157]
[1743487522459,0.03,125.83,125.82,0.14216157]
[1743487522756,0.03,125.83,125.82,0.28432314]
[1743487524257,0.03,125.83,125.82,46.837472]
[1743487524435,0.03,125.83,125.82,54.785272]
[1743487530566,7.4926694,125.83,125.82,54.785272]
[1743487530769,0.03,125.83,125.82,54.785272]
[1743487536276,0.03,125.83,125.82,46.837472]
[1743487536482,7.4926694,125.83,125.82,38.933972]
[1743487537161,0.03,125.83,125.82,38.933972]
[1743487539051,0.03,125.83,125.82,18.933972]
[1743487539357,7.4926694,125.83,125.82,25.773972]
[1743487540165,7.4926694,125.83,125.82,18.79181043]
[1743487540368,7.4926694,125.83,125.82,25.63181043]
[1743487542168,7.4926694,125.83,125.82,25.48964886]
[1743487542473,15.4398694,125.83,125.81,0.063]
[1743487542767,7.4626694,125.82,125.81,25.55264886]
[1743487544268,15.4104694,125.82,125.81,6.903]
[1743487544463,45.261147,125.82,125.81,6.903]
[1743487544670,45.261147,125.82,125.81,0.063]
[1743487544973,20.0,125.79,125.77,6.84]
[1743487545151,20.0,125.79,125.77,25.63181043]
[1743487545152,7.4626694,125.78,125.77,25.63181043]
[1743487545349,20.0,125.79,125.78,18.79181043]
[1743487545555,27.4626694,125.79,125.78,18.64964886]
[1743487545770,27.4626694,125.79,125.77,6.84]
[1743487545965,7.4626694,125.78,125.77,6.84]
[1743487546350,27.4626694,125.78,125.77,6.84]
[1743487547170,27.4626694,125.78,125.74,18.79181043]
[1743487547366,7.4626694,125.77,125.76,18.64964886]
[1743487550679,27.4626694,125.78,125.76,18.64964886]
[1743487550980,27.4626694,125.78,125.77,0.14216157]
[1743487550981,20.0,125.78,125.77,0.14216157]
[1743487551157,7.4626694,125.8,125.77,0.28432314]
[1743487551358,27.4626694,125.81,125.77,0.28432314]
[1743487552365,27.4626694,125.81,125.77,8.23522314]
[1743487552984,0.03,125.83,125.8,0.14216157]
[1743487553195,7.4926694,125.83,125.81,6.86]
[1743487553561,7.4926694,125.83,125.82,18.64964886]
[1743487553879,0.03,125.83,125.82,18.79181043]
[1743487554972,27.4926694,125.83,125.82,18.64964886]
[1743487557089,35.4398694,125.83,125.82,18.64964886]
[1743487557782,27.4926694,125.83,125.82,18.64964886]
[1743487558479,35.4398694,125.83,125.81,6.86]
[1743487558787,7.4626694,125.82,125.81,25.50964886]
[1743487559162,7.4626694,125.82,125.81,25.65181043]
[1743487559472,7.4626694,125.82,125.81,25.71481043]
[1743487559672,15.4104694,125.82,125.81,0.063]
[1743487560075,7.4626694,125.82,125.81,0.063]
[1743487560391,27.4926694,125.83,125.81,0.20516157]
[1743487560562,20.0,125.82,125.81,0.20516157]
[1743487560883,7.4926694,125.83,125.81,0.20516157]
[1743487561258,0.03,125.83,125.81,20.34732314]
[1743487561464,0.03,125.83,125.82,18.933972]
[1743487562963,0.03,125.83,125.82,26.881772]
[1743487569391,0.03,125.86,125.85,38.933972]
[1743487569595,0.03,125.86,125.85,45.793972]
[1743487570563,0.03,125.86,125.85,53.739872]
[1743487573201,0.03,125.86,125.85,135.439872]
[1743487574990,0.03,125.86,125.85,127.493972]
[1743487577900,0.03,125.86,125.85,45.793972]
[1743487579515,0.03,125.86,125.85,53.739872]
[1743487584803,7.4926694,125.86,125.85,45.793972]
[1743487585393,0.03,125.86,125.85,53.739872]
[1743487586304,7.4926694,125.86,125.85,53.739872]
[1743487587495,7.4926694,125.86,125.85,53.719872]
[1743487589089,0.03,125.86,125.85,53.719872]
[1743487591317,0.03,125.86,125.85,45.773972]
[1743487591891,0.03,125.86,125.85,53.719872]
[1743487592091,0.03,125.86,125.85,45.773972]
[1743487592306,0.03,125.86,125.85,53.719872]
[1743487596530,0.03,125.86,125.85,45.773972]
[1743487596831,0.03,125.86,125.85,53.719872]
[1743487599919,7.4926694,125.86,125.85,38.933972]
[1743487600216,7.4926694,125.86,125.83,0.34732314]
[1743487600417,7.4626694,125.84,125.83,18.996972]
[1743487600598,7.4626694,125.84,125.83,25.836972]
[1743487601206,7.4626694,125.84,125.83,18.85481043]
[1743487601412,15.4091694,125.84,125.83,25.69481043]
[1743487602717,7.4626694,125.84,125.83,25.69481043]
[1743487606221,7.4926694,125.86,125.85,0.14216157]
[1743487606522,0.03,125.86,125.85,0.14216157]
[1743487606823,7.4926694,125.86,125.85,0.14216157]
[1743487607313,0.03,125.86,125.85,0.14216157]
[1743487608126,0.03,125.86,125.85,26.879872]
[1743487608839,0.03,125.86,125.85,46.879872]
[1743487609300,0.03,125.86,125.85,38.933972]
[1743487613630,0.03,125.86,125.85,46.879872]
[1743487617936,0.03,125.86,125.85,38.933972]
[1743487618437,0.03,125.86,125.85,46.879872]
[1743487620950,0.03,125.86,125.85,27.9459]
[1743487621253,7.4926694,125.86,125.85,6.8]
[1743487623026,7.4926694,125.86,125.85,25.733972]
[1743487625046,0.03,125.86,125.85,25.733972]
[1743487628745,0.03,125.86,125.85,53.679872]
[1743487630551,0.03,125.86,125.85,45.733972]
[1743487631144,0.03,125.86,125.85,25.733972]
[1743487634350,0.03,125.86,125.85,33.679872]
[1743487634754,0.03,125.86,125.85,53.679872]
[1743487640736,0.03,125.86,125.85,53.742872]
[1743487656265,0.03,125.86,125.85,45.796972]
[1743487656848,0.03,125.86,125.85,53.742872]
[1743487660370,7.4626694,125.9,125.89,0.28432314]
[1743487660574,7.4626694,125.9,125.89,25.713972]
[1743487662966,1.5269,125.92,125.89,25.713972]
[1743487663172,12.46957926,125.96,125.94,18.933972]
[1743487663358,12.46957926,125.96,125.95,45.733972]
[1743487663673,0.03,125.96,125.95,45.733972]
[1743487664262,0.03,125.96,125.95,53.589272]
[1743487664462,0.03,125.96,125.95,61.528872]
[1743487668590,0.03,125.99,125.98,20.28432314]
[1743487668786,0.03,125.99,125.98,38.933972]
[1743487669081,0.03,125.99,125.98,46.871672]
[1743487672477,0.03,125.99,125.98,53.671672]
[1743487673992,0.03,125.99,125.98,282.511672]
[1743487674902,7.9634,126.05,126.03,18.933972]
[1743487675067,7.9634,126.05,126.04,25.59181043]
[1743487675876,15.4260694,126.05,126.04,6.8]
[1743487676191,15.4260694,126.05,126.03,18.64964886]
[1743487676367,15.4260694,126.05,126.04,6.8]
[1743487680711,1.6663,126.04,126.03,6.8]
[1743487680996,9.1289694,126.04,126.03,6.8]
[1743487681694,17.0628694,126.04,126.03,6.8]
[1743487682898,9.6002,126.04,126.03,6.8]
[1743487683767,7.4926694,126.05,126.03,6.8]
[1743487683768,7.9635,126.05,126.03,25.59181043]
[1743487684297,0.03,126.05,126.03,25.59181043]